[Event "Budapest Spring Festival 2019"]
[Site "Budapest"]
[Date "2019.04.11"]
[Round "3.12"]
[White "Mikhalevski, Victor"]
[Black "Kulkarni Bhakti"]
[Result "1-0"]
[ECO "A14"]
[WhiteElo "2580"]
[BlackElo "2350"]
[Annotator "ChessBase"]
[PlyCount "101"]
[EventDate "2019.04.09"]
[EventType "swiss"]
[EventCountry "HUN"]
[SourceTitle "playchess.com"]
[Source "ChessBase"]
[SourceQuality "1"]
[TimeControl "40/5400+30:1800+30"]

1. c4 {[%emt 0:02:23]} Nf6 {[%emt 0:00:55]} 2. g3 {[%emt 0:00:12]} e6 {[%emt 0:00:38]} 3. Bg2 {[%emt 0:00:15]} d5 {[%emt 0:00:11]} 4. Nf3 {[%emt 0:00:06]} Be7 {[%emt 0:01:00]} 5. O-O {[%emt 0:00:13]} O-O {[%emt 0:01:26]} 6. b3 {[%emt 0:00:14]} c5 {[%emt 0:02:06]} 7. cxd5 {[%emt 0:00:38]} Nxd5 {[%emt 0:02:39]} 8. Bb2 {[%emt 0:00:11]} Nc6 {[%emt 0:00:35]} 9. d4 {[%emt 0:00:06]} cxd4 {[%emt 0:07:57]} 10. Nxd4 {[%emt 0:00:51]} Nxd4 {[%emt 0:00:33]} 11. Qxd4 {[%emt 0:00:57]} Bf6 {[%emt 0:01:11]} 12. Qd2 {[%emt 0:04:56]} Bxb2 {[%emt 0:02:58]} 13. Qxb2 {[%emt 0:00:30]} Nb4 {[%emt 0:04:34]} 14. Na3 {[%emt 0:05:01]} Qe7 {[%emt 0:01:58]} 15. Nc4 {[%emt 0:04:33]} Rb8 {[%emt 0:02:32]} 16. a3 {[%emt 0:12:53]} Nc6 {[%emt 0:05:45]} 17. b4 {[%emt 0:05:12]} b5 {[%emt 0:04:42]} 18. Nd2 {[%emt 0:01:50]} Bb7 {[%emt 0:00:23]} 19. Rfc1 {[%emt 0:00:20]} Rbc8 {[%emt 0:01:27]} 20. Rc5 {[%emt 0:04:42]} a6 {[%emt 0:03:40]} 21. Rac1 {[%emt 0:00:14]} Na7 {[%emt 0:07:17]} 22. Ne4 {[%emt 0:15:49]} h6 {[%emt 0:18:01]} 23. Qe5 {[%emt 0:05:48]} Rxc5 {[%emt 0:02:54]} 24. Nxc5 {[%emt 0:14:25]} Bxg2 {[%emt 0:01:17]} 25. Kxg2 {[%emt 0:00:03]} Rd8 {[%emt 0:01:46]} 26. Qe4 {[%emt 0:02:15]} Rd6 {[%emt 0:02:58]} 27. h4 {[%emt 0:07:48]} Qc7 {[%emt 0:04:13]} 28. h5 {[%emt 0:03:32]} Nc8 {[%emt 0:03:21]} 29. Qf4 {[%emt 0:05:06]} Qb6 {[%emt 0:13:19]} 30. Nxe6 {[%emt 0:00:48]} Qb7+ {[%emt 0:00:05]} 31. Qf3 {[%emt 0:00:05]} Qxf3+ {[%emt 0:00:18]} 32. Kxf3 {[%emt 0:00:01]} Nb6 {[%emt 0:00:36]} 33. Nc5 {[%emt 0:00:21]} Nc4 {[%emt 0:00:06]} 34. Rc3 {[%emt 0:00:25]} Rf6+ {[%emt 0:01:18]} 35. Kg2 {[%emt 0:00:06]} Rd6 {[%emt 0:00:39]} 36. a4 {[%emt 0:01:12]} Kf8 {[%emt 0:01:15]} 37. a5 {[%emt 0:00:21]} Ne5 {[%emt 0:00:36]} 38. Re3 {[%emt 0:01:16]} f6 {[%emt 0:00:38]} 39. Re4 {[%emt 0:01:09]} Kf7 {[%emt 0:00:25]} 40. g4 {[%emt 0:00:00]} Nc4 {[%emt 0:00:00]} 41. e3 {[%emt 0:07:43]} Ne5 {[%emt 0:02:05]} 42. Rd4 {[%emt 0:05:01]} Rc6 {[%emt 0:01:10]} 43. Kg3 {[%emt 0:02:02]} Ke8 {[%emt 0:01:01]} 44. Kf4 {[%emt 0:01:09]} Nc4 {[%emt 0:00:15]} 45. Ke4 {[%emt 0:01:53]} Ne5 {[%emt 0:01:36]} 46. Kf5 {[%emt 0:01:33]} Ke7 {[%emt 0:01:52]} 47. f4 {[%emt 0:03:36]} Nc4 {[%emt 0:00:05]} 48. Kg6 {[%emt 0:00:33]} f5+ {[%emt 0:00:34]} 49. Kxg7 {[%emt 0:01:33]} fxg4 {[%emt 0:01:20]} 50. f5 {[%emt 0:00:23]} Ne5 {[%emt 0:00:18]} 51. Rd5 {[%emt 0:01:19]} 1-0

[Event "Budapest Spring Festival 2019"]
[Site "Budapest"]
[Date "2019.04.11"]
[Round "3.15"]
[White "Stupak, Kirill"]
[Black "Risting, Eivind Olav"]
[Result "1-0"]
[ECO "E04"]
[WhiteElo "2547"]
[BlackElo "2345"]
[Annotator "ChessBase"]
[PlyCount "91"]
[EventDate "2019.04.09"]
[EventType "swiss"]
[EventCountry "HUN"]
[SourceTitle "playchess.com"]
[Source "ChessBase"]
[SourceQuality "1"]
[TimeControl "40/5400+30:1800+30"]

1. d4 {[%emt 0:07:06]} Nf6 {[%emt 0:00:13]} 2. c4 {[%emt 0:00:06]} e6 {[%emt 0:00:25]} 3. g3 {[%emt 0:00:04]} d5 {[%emt 0:00:50]} 4. Bg2 {[%emt 0:01:10]} dxc4 {[%emt 0:01:42]} 5. Nf3 {[%emt 0:01:12]} Bb4+ {[%emt 0:01:36]} 6. Nbd2 {[%emt 0:15:29]} b5 {[%emt 0:03:51]} 7. O-O {[%emt 0:08:37]} O-O {[%emt 0:09:31]} 8. a4 {[%emt 0:06:53]} c6 {[%emt 0:08:42]} 9. Qc2 {[%emt 0:11:37]} Bb7 {[%emt 0:02:52]} 10. b3 {[%emt 0:00:23]} cxb3 {[%emt 0:05:29]} 11. Nxb3 {[%emt 0:00:05]} Nbd7 {[%emt 0:03:02]} 12. Ne1 {[%emt 0:01:10]} a6 {[%emt 0:17:19]} 13. Nd3 {[%emt 0:02:03]} Be7 {[%emt 0:00:42]} 14. Bd2 {[%emt 0:08:09]} Rc8 {[%emt 0:08:40]} 15. Ba5 {[%emt 0:02:09]} Qe8 {[%emt 0:00:07]} 16. Rfd1 {[%emt 0:06:42]} h6 {[%emt 0:04:05]} 17. Nbc5 {[%emt 0:06:26]} Nxc5 {[%emt 0:02:59]} 18. Nxc5 {[%emt 0:00:02]} Bxc5 {[%emt 0:03:34]} 19. dxc5 {[%emt 0:00:02]} Qe7 {[%emt 0:01:17]} 20. Rd6 {[%emt 0:04:02]} e5 {[%emt 0:02:01]} 21. Rad1 {[%emt 0:02:02]} Rb8 {[%emt 0:01:26]} 22. e4 {[%emt 0:02:16]} Rbe8 {[%emt 0:01:56]} 23. f3 {[%emt 0:04:12]} Bc8 {[%emt 0:06:57]} 24. Rxc6 {[%emt 0:00:22]} Bd7 {[%emt 0:01:16]} 25. Rcd6 {[%emt 0:03:02]} Rc8 {[%emt 0:01:53]} 26. c6 {[%emt 0:00:27]} Be6 {[%emt 0:00:48]} 27. axb5 {[%emt 0:03:30]} axb5 {[%emt 0:00:26]} 28. c7 {[%emt 0:00:01]} Ne8 {[%emt 0:00:48]} 29. Rc6 {[%emt 0:01:07]} Qa3 {[%emt 0:01:54]} 30. Qc3 {[%emt 0:01:18]} Qxc3 {[%emt 0:02:37]} 31. Rxc3 b4 {[%emt 0:01:18]} 32. Bxb4 {[%emt 0:02:09]} Rxc7 {[%emt 0:00:09]} 33. Rxc7 {[%emt 0:00:14]} Nxc7 {[%emt 0:00:03]} 34. Bxf8 {[%emt 0:00:04]} Kxf8 {[%emt 0:00:08]} 35. Bf1 {[%emt 0:00:01]} Ke7 {[%emt 0:01:17]} 36. Kf2 {[%emt 0:00:02]} Ne8 {[%emt 0:00:51]} 37. Ke3 {[%emt 0:00:25]} Nf6 {[%emt 0:02:24]} 38. Bb5 {[%emt 0:01:13]} g6 {[%emt 0:01:23]} 39. Ra1 {[%emt 0:00:45]} h5 {[%emt 0:00:31]} 40. Ra7+ {[%emt 0:00:00]} Kf8 {[%emt 0:00:00]} 41. Rc7 {[%emt 0:01:47]} Ne8 {[%emt 0:07:03]} 42. Bxe8 {[%emt 0:03:05]} Kxe8 {[%emt 0:00:06]} 43. Rc5 {[%emt 0:00:04]} f6 {[%emt 0:00:11]} 44. f4 {[%emt 0:00:07]} exf4+ {[%emt 0:00:12]} 45. gxf4 {[%emt 0:00:02]} Ke7 {[%emt 0:00:32]} 46. h4 {[%emt 0:00:01]} 1-0

[Event "Budapest Spring Festival 2019"]
[Site "Budapest"]
[Date "2019.04.11"]
[Round "3.16"]
[White "Mehar, Chinna Reddy C.H."]
[Black "Horvath, Adam"]
[Result "1/2-1/2"]
[ECO "A46"]
[WhiteElo "2348"]
[BlackElo "2533"]
[Annotator "ChessBase"]
[PlyCount "136"]
[EventDate "2019.04.09"]
[EventType "swiss"]
[EventCountry "HUN"]
[SourceTitle "playchess.com"]
[Source "ChessBase"]
[SourceQuality "1"]
[TimeControl "40/5400+30:1800+30"]

1. d4 {[%emt 0:00:42]} Nf6 {[%emt 0:02:10]} 2. Nf3 {[%emt 0:00:34]} e6 {[%emt 0:00:20]} 3. e3 {[%emt 0:00:33]} b6 {[%emt 0:00:49]} 4. Bd3 {[%emt 0:00:30]} Bb7 {[%emt 0:01:08]} 5. O-O {[%emt 0:00:10]} d5 {[%emt 0:00:56]} 6. c4 {[%emt 0:01:59]} Be7 {[%emt 0:03:23]} 7. Nc3 {[%emt 0:00:14]} O-O {[%emt 0:00:14]} 8. cxd5 {[%emt 0:03:19]} exd5 {[%emt 0:02:06]} 9. b3 {[%emt 0:00:15]} Nbd7 {[%emt 0:00:43]} 10. Bb2 {[%emt 0:00:07]} Re8 {[%emt 0:00:51]} 11. Rc1 {[%emt 0:00:18]} a6 {[%emt 0:00:31]} 12. Ne2 {[%emt 0:00:33]} Bd6 {[%emt 0:01:22]} 13. Ng3 {[%emt 0:06:12]} g6 {[%emt 0:01:09]} 14. Rc2 {[%emt 0:00:23]} Qe7 {[%emt 0:07:40]} 15. Qe2 {[%emt 0:01:45]} c6 {[%emt 0:17:55]} 16. Rfc1 {[%emt 0:01:49]} a5 {[%emt 0:01:53]} 17. a4 {[%emt 0:01:11]} h5 {[%emt 0:08:36]} 18. Nf1 {[%emt 0:04:42]} Ne4 {[%emt 0:02:41]} 19. N3d2 {[%emt 0:04:35]} Ndf6 {[%emt 0:09:08]} 20. f3 {[%emt 0:01:59]} Nxd2 {[%emt 0:14:05]} 21. Qxd2 {[%emt 0:00:34]} Ba3 {[%emt 0:05:52]} 22. Bxa3 {[%emt 0:00:30]} Qxa3 {[%emt 0:00:06]} 23. Ra2 {[%emt 0:01:18]} Qd6 {[%emt 0:00:55]} 24. Rac2 {[%emt 0:01:07]} Re6 {[%emt 0:06:41]} 25. Rb2 {[%emt 0:01:32]} Ba6 {[%emt 0:02:35]} 26. Rbc2 {[%emt 0:01:16]} Bb7 {[%emt 0:01:56]} 27. Rb2 {[%emt 0:00:21]} Nd7 {[%emt 0:00:18]} 28. Rbc2 {[%emt 0:03:24]} Rae8 {[%emt 0:02:53]} 29. Qf2 {[%emt 0:03:57]} Qb4 {[%emt 0:01:41]} 30. Rb2 {[%emt 0:07:34]} Kg7 {[%emt 0:01:21]} 31. Qd2 {[%emt 0:03:22]} Qd6 {[%emt 0:00:18]} 32. b4 {[%emt 0:02:22]} axb4 {[%emt 0:00:27]} 33. Rxb4 {[%emt 0:00:40]} Ra8 {[%emt 0:02:31]} 34. Ra1 {[%emt 0:03:57]} Ba6 {[%emt 0:00:26]} 35. Bxa6 {[%emt 0:00:55]} Rxa6 {[%emt 0:00:03]} 36. Rbb1 {[%emt 0:02:40]} Re8 {[%emt 0:00:17]} 37. Qc3 {[%emt 0:01:38]} Rea8 {[%emt 0:00:38]} 38. Rc1 {[%emt 0:01:10]} b5 {[%emt 0:00:48]} 39. axb5 {[%emt 0:01:19]} Rxa1 {[%emt 0:00:04]} 40. Rxa1 {[%emt 0:00:00]} Rxa1 {[%emt 0:00:00]} 41. Qxa1 {[%emt 0:00:14]} cxb5 {[%emt 0:00:10]} 42. Qa5 {[%emt 0:00:44]} Qc6 {[%emt 0:08:50]} 43. Qb4 {[%emt 0:01:23]} Qc4 {[%emt 0:00:40]} 44. Qd6 {[%emt 0:01:30]} Nf6 {[%emt 0:00:35]} 45. Qe5 {[%emt 0:00:15]} Qd3 {[%emt 0:08:59]} 46. h3 {[%emt 0:03:45]} h4 {[%emt 0:12:50]} 47. Nh2 {[%emt 0:00:34]} Qf5 {[%emt 0:02:13]} 48. Ng4 {[%emt 0:04:20]} Qxe5 {[%emt 0:00:10]} 49. Nxe5 {[%emt 0:00:03]} b4 {[%emt 0:00:05]} 50. Kf2 {[%emt 0:00:54]} b3 {[%emt 0:00:12]} 51. Nd3 {[%emt 0:00:28]} Nd7 {[%emt 0:00:06]} 52. Ke2 {[%emt 0:01:06]} Nb6 {[%emt 0:00:10]} 53. Kd2 {[%emt 0:06:57]} Nc4+ {[%emt 0:00:12]} 54. Kc3 {[%emt 0:00:03]} Nxe3 {[%emt 0:00:38]} 55. Kxb3 {[%emt 0:00:15]} Nxg2 {[%emt 0:00:30]} 56. Kb4 {[%emt 0:00:11]} g5 {[%emt 0:02:54]} 57. Kc5 {[%emt 0:00:06]} Ne3 {[%emt 0:00:23]} 58. Kd6 {[%emt 0:01:11]} f5 {[%emt 0:00:50]} 59. Ke5 {[%emt 0:01:02]} Kh6 {[%emt 0:00:43]} 60. Nf2 {[%emt 0:01:39]} g4 {[%emt 0:00:39]} 61. fxg4 {[%emt 0:00:31]} fxg4 {[%emt 0:00:34]} 62. Kf4 {[%emt 0:00:18]} Nc2 {[%emt 0:00:35]} 63. Nxg4+ {[%emt 0:00:08]} Kg6 {[%emt 0:00:03]} 64. Ke5 {[%emt 0:00:08]} Kg5 {[%emt 0:00:12]} 65. Kxd5 {[%emt 0:01:14]} Kf4 {[%emt 0:00:04]} 66. Kc5 {[%emt 0:00:10]} Nxd4 {[%emt 0:00:21]} 67. Kxd4 {[%emt 0:00:03]} Kg3 {[%emt 0:00:05]} 68. Ke3 {[%emt 0:00:04]} Kxh3 {[%emt 0:00:05]} 1/2-1/2

[Event "Budapest Spring Festival 2019"]
[Site "Budapest"]
[Date "2019.04.11"]
[Round "3.19"]
[White "Kosic, Dragan"]
[Black "Popovic, Milan S"]
[Result "1/2-1/2"]
[ECO "E92"]
[WhiteElo "2508"]
[BlackElo "2332"]
[Annotator "ChessBase"]
[PlyCount "89"]
[EventDate "2019.04.09"]
[EventType "swiss"]
[EventCountry "HUN"]
[SourceTitle "playchess.com"]
[Source "ChessBase"]
[SourceQuality "1"]
[TimeControl "40/5400+30:1800+30"]

1. d4 d6 {[%emt 0:00:35]} 2. Nf3 {[%emt 0:04:11]} Nf6 {[%emt 0:00:05]} 3. c4 {[%emt 0:00:54]} g6 {[%emt 0:00:08]} 4. Nc3 {[%emt 0:00:07]} Bg7 {[%emt 0:00:05]} 5. e4 {[%emt 0:00:03]} O-O {[%emt 0:00:07]} 6. Be2 {[%emt 0:00:03]} e5 {[%emt 0:00:08]} 7. Be3 {[%emt 0:00:04]} exd4 {[%emt 0:00:55]} 8. Nxd4 {[%emt 0:00:06]} Re8 {[%emt 0:00:34]} 9. f3 {[%emt 0:00:06]} c6 {[%emt 0:00:08]} 10. Bf2 {[%emt 0:00:04]} d5 {[%emt 0:00:05]} 11. exd5 {[%emt 0:00:04]} cxd5 {[%emt 0:00:05]} 12. O-O {[%emt 0:00:06]} Nc6 {[%emt 0:00:04]} 13. c5 {[%emt 0:00:03]} Nh5 {[%emt 0:00:41]} 14. Qd2 {[%emt 0:00:15]} Be5 {[%emt 0:00:11]} 15. g3 {[%emt 0:00:05]} Ng7 {[%emt 0:00:06]} 16. Rfd1 {[%emt 0:06:15]} Bf5 {[%emt 0:04:01]} 17. Nb3 {[%emt 0:18:18]} d4 {[%emt 0:02:31]} 18. Nb5 {[%emt 0:11:39]} Ne6 {[%emt 0:20:00]} 19. f4 {[%emt 0:07:07]} a6 {[%emt 0:02:24]} 20. fxe5 {[%emt 0:08:42]} axb5 {[%emt 0:01:54]} 21. Nxd4 {[%emt 0:00:37]} Nexd4 {[%emt 0:10:43]} 22. Bxd4 {[%emt 0:00:13]} Bc2 {[%emt 0:13:55]} 23. Qxc2 {[%emt 0:02:13]} Nxd4 {[%emt 0:02:09]} 24. Qe4 {[%emt 0:00:26]} Nxe2+ {[%emt 0:01:30]} 25. Qxe2 {[%emt 0:00:08]} Qc7 {[%emt 0:07:46]} 26. Rd5 {[%emt 0:01:37]} b4 {[%emt 0:03:58]} 27. b3 {[%emt 0:02:45]} Ra5 {[%emt 0:12:42]} 28. Rc1 {[%emt 0:02:18]} b6 {[%emt 0:02:10]} 29. Qf2 {[%emt 0:07:54]} Qe7 {[%emt 0:08:24]} 30. Rc4 {[%emt 0:17:46]} Rea8 {[%emt 0:02:26]} 31. Qf6 {[%emt 0:02:17]} Qxf6 {[%emt 0:03:22]} 32. exf6 {[%emt 0:00:07]} bxc5 {[%emt 0:00:49]} 33. Rdxc5 {[%emt 0:02:02]} Rxc5 {[%emt 0:00:27]} 34. Rxc5 {[%emt 0:00:06]} h6 {[%emt 0:01:17]} 35. h4 {[%emt 0:01:26]} Ra6 {[%emt 0:00:29]} 36. Rb5 {[%emt 0:00:58]} Rxa2 {[%emt 0:00:31]} 37. g4 {[%emt 0:01:59]} Ra3 {[%emt 0:00:24]} 38. Rxb4 {[%emt 0:00:52]} g5 {[%emt 0:00:29]} 39. hxg5 {[%emt 0:02:15]} hxg5 {[%emt 0:00:03]} 40. Rb5 {[%emt 0:00:00]} Kh7 {[%emt 0:00:00]} 41. Kf2 {[%emt 0:18:07]} Kg6 {[%emt 0:01:33]} 42. Rb6 {[%emt 0:00:05]} Ra1 {[%emt 0:00:12]} 43. b4 {[%emt 0:02:02]} Rb1 {[%emt 0:00:07]} 44. Ke3 {[%emt 0:04:46]} Rg1 {[%emt 0:00:40]} 45. Kf3 {[%emt 0:01:14]} 1/2-1/2

[Event "Budapest Spring Festival 2019"]
[Site "Budapest"]
[Date "2019.04.11"]
[Round "3.20"]
[White "Kulkarni, Rakesh"]
[Black "Galyas, Miklos"]
[Result "1/2-1/2"]
[ECO "B07"]
[WhiteElo "2334"]
[BlackElo "2490"]
[Annotator "ChessBase"]
[PlyCount "87"]
[EventDate "2019.04.09"]
[EventType "swiss"]
[EventCountry "HUN"]
[SourceTitle "playchess.com"]
[Source "ChessBase"]
[SourceQuality "1"]
[TimeControl "40/5400+30:1800+30"]

1. e4 {[%emt 0:04:43]} d6 {[%emt 0:00:07]} 2. d4 {[%emt 0:00:07]} Nf6 {[%emt 0:00:10]} 3. Nc3 {[%emt 0:00:07]} g6 {[%emt 0:00:08]} 4. Be3 {[%emt 0:00:07]} c6 {[%emt 0:00:32]} 5. f3 {[%emt 0:00:24]} Nbd7 {[%emt 0:00:29]} 6. Qd2 {[%emt 0:00:07]} b5 {[%emt 0:00:32]} 7. g4 {[%emt 0:00:27]} Bg7 {[%emt 0:00:33]} 8. Nge2 {[%emt 0:00:59]} b4 {[%emt 0:04:23]} 9. Nd1 {[%emt 0:00:28]} a5 {[%emt 0:00:48]} 10. a3 {[%emt 0:04:10]} Rb8 {[%emt 0:04:55]} 11. axb4 {[%emt 0:01:38]} axb4 {[%emt 0:00:06]} 12. Ng3 {[%emt 0:02:55]} e5 {[%emt 0:14:38]} 13. g5 {[%emt 0:04:31]} Nh5 {[%emt 0:00:25]} 14. Nxh5 {[%emt 0:01:08]} gxh5 {[%emt 0:00:02]} 15. f4 {[%emt 0:11:01]} exf4 {[%emt 0:02:07]} 16. Bxf4 {[%emt 0:02:54]} Nf8 {[%emt 0:01:10]} 17. Ne3 {[%emt 0:03:11]} Ng6 {[%emt 0:06:35]} 18. Nf5 {[%emt 0:01:06]} O-O {[%emt 0:04:41]} 19. Nxg7 {[%emt 0:10:32]} Kxg7 {[%emt 0:00:19]} 20. Bd3 {[%emt 0:05:13]} Bh3 {[%emt 0:05:03]} 21. Be3 {[%emt 0:05:37]} Qd7 {[%emt 0:02:36]} 22. Rg1 {[%emt 0:05:10]} Bg4 {[%emt 0:08:18]} 23. Rf1 {[%emt 0:06:10]} Nh4 {[%emt 0:11:25]} 24. g6 {[%emt 0:01:11]} hxg6 {[%emt 0:00:28]} 25. Bh6+ {[%emt 0:07:05]} Kh7 {[%emt 0:01:29]} 26. Bxf8 {[%emt 0:00:57]} Rxf8 {[%emt 0:00:01]} 27. Qxb4 {[%emt 0:03:03]} Nf3+ {[%emt 0:08:49]} 28. Rxf3 {[%emt 0:00:09]} Bxf3 {[%emt 0:00:06]} 29. Kd2 {[%emt 0:00:14]} Qe7 {[%emt 0:03:18]} 30. e5 {[%emt 0:07:26]} c5 {[%emt 0:05:29]} 31. dxc5 {[%emt 0:00:31]} dxe5 {[%emt 0:01:09]} 32. Re1 {[%emt 0:02:16]} e4 {[%emt 0:03:53]} 33. Bxe4 {[%emt 0:01:01]} Qg5+ {[%emt 0:00:49]} 34. Kc3 {[%emt 0:01:02]} Bxe4 {[%emt 0:02:26]} 35. Rxe4 {[%emt 0:02:18]} Rc8 {[%emt 0:00:18]} 36. b3 {[%emt 0:01:40]} Rxc5+ {[%emt 0:01:19]} 37. Kb2 {[%emt 0:00:05]} Qf5 {[%emt 0:02:11]} 38. h4 {[%emt 0:03:45]} Qf2 {[%emt 0:01:25]} 39. Rc4 {[%emt 0:00:58]} Rxc4 {[%emt 0:00:16]} 40. Qxc4 {[%emt 0:00:00]} g5 {[%emt 0:00:00]} 41. hxg5 {[%emt 0:07:29]} h4 {[%emt 0:04:03]} 42. b4 {[%emt 0:00:57]} Kg6 {[%emt 0:02:54]} 43. b5 {[%emt 0:01:32]} Kxg5 {[%emt 0:00:47]} 44. Qb3 {[%emt 0:02:36]} 1/2-1/2

[Event "Budapest Spring Festival 2019"]
[Site "Budapest"]
[Date "2019.04.11"]
[Round "3.23"]
[White "Ankit, R. Rajpara"]
[Black "Bhambure, Shantanu"]
[Result "1/2-1/2"]
[ECO "E04"]
[WhiteElo "2462"]
[BlackElo "2261"]
[Annotator "ChessBase"]
[PlyCount "153"]
[EventDate "2019.04.09"]
[EventType "swiss"]
[EventCountry "HUN"]
[SourceTitle "playchess.com"]
[Source "ChessBase"]
[SourceQuality "1"]
[TimeControl "40/5400+30:1800+30"]

1. d4 {[%emt 0:00:05]} Nf6 {[%emt 0:00:07]} 2. c4 {[%emt 0:00:05]} e6 {[%emt 0:00:04]} 3. g3 {[%emt 0:00:06]} d5 {[%emt 0:00:15]} 4. Nf3 {[%emt 0:00:08]} dxc4 {[%emt 0:00:54]} 5. Bg2 {[%emt 0:00:16]} a6 {[%emt 0:00:09]} 6. O-O {[%emt 0:00:40]} Nc6 {[%emt 0:00:14]} 7. e3 {[%emt 0:00:29]} Bd7 {[%emt 0:00:34]} 8. Qe2 {[%emt 0:00:23]} Bd6 {[%emt 0:01:15]} 9. Qxc4 {[%emt 0:00:26]} O-O {[%emt 0:00:55]} 10. Nbd2 {[%emt 0:00:10]} e5 {[%emt 0:05:27]} 11. dxe5 {[%emt 0:00:13]} Nxe5 {[%emt 0:00:10]} 12. Nxe5 {[%emt 0:00:30]} Bxe5 {[%emt 0:00:06]} 13. Qc5 {[%emt 0:00:07]} Bd6 {[%emt 0:00:00]} 14. Qc2 {[%emt 0:00:11]} Rb8 {[%emt 0:12:30]} 15. b3 {[%emt 0:22:19]} Qe7 {[%emt 0:07:58]} 16. Nc4 {[%emt 0:01:54]} Bc5 {[%emt 0:01:25]} 17. Bb2 {[%emt 0:02:11]} Be6 {[%emt 0:07:08]} 18. Na5 {[%emt 0:11:48]} c6 {[%emt 0:07:36]} 19. Bxf6 {[%emt 0:04:34]} gxf6 {[%emt 0:00:13]} 20. Nc4 {[%emt 0:01:10]} Rbd8 {[%emt 0:03:26]} 21. Nd2 {[%emt 0:01:58]} Bb4 {[%emt 0:05:37]} 22. Nf3 {[%emt 0:03:00]} Qc5 {[%emt 0:05:35]} 23. Qe4 {[%emt 0:00:35]} Ba3 {[%emt 0:03:41]} 24. Qf4 {[%emt 0:11:55]} Qf5 {[%emt 0:03:31]} 25. Qh4 {[%emt 0:09:25]} Rfe8 {[%emt 0:07:13]} 26. Qa4 {[%emt 0:06:52]} Bb2 {[%emt 0:04:57]} 27. Rab1 {[%emt 0:00:27]} Qc2 {[%emt 0:01:47]} 28. Nh4 {[%emt 0:04:46]} Bc8 {[%emt 0:03:45]} 29. Qf4 {[%emt 0:06:04]} Rd2 {[%emt 0:03:53]} 30. Rbe1 {[%emt 0:01:10]} Kg7 {[%emt 0:02:30]} 31. Bf3 {[%emt 0:06:53]} Be5 {[%emt 0:02:49]} 32. Qb4 {[%emt 0:01:06]} Bd6 {[%emt 0:02:34]} 33. Qa5 {[%emt 0:01:01]} Qxa2 {[%emt 0:02:27]} 34. Nf5+ {[%emt 0:00:08]} Bxf5 {[%emt 0:00:14]} 35. Qxf5 {[%emt 0:00:05]} Qc2 {[%emt 0:01:26]} 36. Qg4+ {[%emt 0:01:12]} Qg6 {[%emt 0:00:11]} 37. Qc4 {[%emt 0:00:22]} Rd8 {[%emt 0:01:41]} 38. Rd1 {[%emt 0:02:06]} Be7 {[%emt 0:01:32]} 39. Ra1 {[%emt 0:01:21]} Qg5 {[%emt 0:01:40]} 40. h4 {[%emt 0:00:00]} Qf5 {[%emt 0:00:00]} 41. Bg4 {[%emt 0:06:03]} Qd5 {[%emt 0:03:42]} 42. Qa4 {[%emt 0:04:15]} Bc5 {[%emt 0:04:47]} 43. Qf4 {[%emt 0:01:33]} Qe5 {[%emt 0:05:02]} 44. Qf3 {[%emt 0:01:10]} Qd5 {[%emt 0:02:35]} 45. Qxd5 {[%emt 0:04:45]} R2xd5 {[%emt 0:01:01]} 46. Rfd1 {[%emt 0:00:23]} Rxd1+ {[%emt 0:04:14]} 47. Rxd1 {[%emt 0:00:07]} Rxd1+ {[%emt 0:00:35]} 48. Bxd1 {[%emt 0:00:06]} f5 {[%emt 0:02:48]} 49. Kf1 {[%emt 0:01:31]} a5 {[%emt 0:00:47]} 50. Ke2 {[%emt 0:00:48]} Kf6 {[%emt 0:01:01]} 51. Bc2 {[%emt 0:02:38]} h6 {[%emt 0:00:18]} 52. f4 {[%emt 0:04:32]} Bb4 {[%emt 0:00:55]} 53. e4 {[%emt 0:00:15]} fxe4 {[%emt 0:00:10]} 54. Bxe4 {[%emt 0:00:04]} Ke6 {[%emt 0:01:09]} 55. g4 {[%emt 0:00:23]} f6 {[%emt 0:02:00]} 56. Bf5+ {[%emt 0:03:21]} Kd5 {[%emt 0:01:21]} 57. g5 {[%emt 0:00:09]} fxg5 {[%emt 0:01:14]} 58. fxg5 {[%emt 0:00:05]} hxg5 {[%emt 0:00:09]} 59. hxg5 {[%emt 0:00:04]} Kd4 {[%emt 0:02:23]} 60. g6 {[%emt 0:00:10]} Bf8 {[%emt 0:00:07]} 61. Kd2 {[%emt 0:00:07]} Kc5 {[%emt 0:01:14]} 62. Bc8 {[%emt 0:01:23]} b6 {[%emt 0:00:56]} 63. Bd7 {[%emt 0:00:09]} Kb4 {[%emt 0:00:30]} 64. Bxc6 {[%emt 0:00:50]} Kxb3 {[%emt 0:00:07]} 65. Bd5+ {[%emt 0:00:04]} Kb4 {[%emt 0:01:33]} 66. Kc2 {[%emt 0:00:21]} b5 {[%emt 0:00:48]} 67. Bc6 {[%emt 0:00:05]} Kc4 {[%emt 0:00:35]} 68. Bd7 {[%emt 0:00:17]} Bg7 {[%emt 0:00:14]} 69. Be8 {[%emt 0:00:07]} a4 {[%emt 0:00:34]} 70. Bd7 {[%emt 0:00:17]} Kb4 {[%emt 0:00:44]} 71. Be8 {[%emt 0:00:05]} Ka5 {[%emt 0:00:09]} 72. Bd7 {[%emt 0:00:04]} b4 {[%emt 0:00:46]} 73. Be6 {[%emt 0:00:04]} Kb5 {[%emt 0:00:18]} 74. Bd7+ {[%emt 0:00:08]} Ka5 {[%emt 0:00:03]} 75. Be6 {[%emt 0:00:05]} Kb6 {[%emt 0:00:01]} 76. Bg8 {[%emt 0:00:08]} Kc5 {[%emt 0:00:18]} 77. Bf7 {[%emt 0:00:05]} 1/2-1/2